[Event "*** Titled Tuesday Blitz"]
[Site "Chess.com"]
[Date "2021.02.02"]
[Round "5"]
[White "MrChampion_Coach"]
[Black "paulrusan"]
[Result "0-1"]
[WhiteElo "2415"]
[BlackElo "2264"]
[TimeControl "180+1"]
[EndTime "11:00:36 PST"]
[Termination "paulrusan won by checkmate"]

1. d4 {[%clk 0:03:00.9]} 1... Nf6 {[%clk 0:02:59.6]} 2. c4 {[%clk 0:03:00.9]}
2... g6 {[%clk 0:02:59.6]} 3. Nc3 {[%clk 0:03:01]} 3... Bg7 {[%clk 0:02:59.8]}
4. e4 {[%clk 0:02:59.8]} 4... d6 {[%clk 0:03:00]} 5. Be2 {[%clk 0:02:59.1]} 5...
O-O {[%clk 0:03:00]} 6. Bg5 {[%clk 0:02:59.4]} 6... Nbd7 {[%clk 0:02:57.4]} 7.
Qd2 {[%clk 0:02:49.1]} 7... c5 {[%clk 0:02:57.3]} 8. d5 {[%clk 0:02:45.6]} 8...
b5 {[%clk 0:02:57.7]} 9. cxb5 {[%clk 0:02:45.1]} 9... a6 {[%clk 0:02:58.2]} 10.
Nf3 {[%clk 0:02:40.4]} 10... Qa5 {[%clk 0:02:53.2]} 11. b6 {[%clk 0:02:35.3]}
11... Nxb6 {[%clk 0:02:50.9]} 12. O-O {[%clk 0:02:34.6]} 12... Bg4 {[%clk
0:02:48.1]} 13. Rfc1 {[%clk 0:01:57.3]} 13... Rab8 {[%clk 0:02:30.1]} 14. b3
{[%clk 0:01:47.9]} 14... c4 {[%clk 0:02:22.9]} 15. Nd4 {[%clk 0:01:40.4]} 15...
Bxe2 {[%clk 0:02:20]} 16. Ndxe2 {[%clk 0:01:38.5]} 16... Rfc8 {[%clk 0:02:04.8]}
17. h3 {[%clk 0:01:22.9]} 17... cxb3 {[%clk 0:01:58.9]} 18. axb3 {[%clk
0:01:23.8]} 18... Qb4 {[%clk 0:01:59.1]} 19. Be3 {[%clk 0:01:06]} 19... Nxe4
{[%clk 0:01:52.8]} 20. Nxe4 {[%clk 0:01:05.2]} 20... Qxe4 {[%clk 0:01:52.4]} 21.
Rxc8+ {[%clk 0:00:56.8]} 21... Rxc8 {[%clk 0:01:44.7]} 22. Rd1 {[%clk
0:00:56.5]} 22... Rc2 {[%clk 0:01:30.7]} 23. Qe1 {[%clk 0:00:49.5]} 23... Nxd5
{[%clk 0:01:27.9]} 24. Ng3 {[%clk 0:00:47.8]} 24... Qe6 {[%clk 0:01:22.2]} 25.
Rd3 {[%clk 0:00:42]} 25... h5 {[%clk 0:01:06.4]} 26. Qd1 {[%clk 0:00:37.2]}
26... Nxe3 {[%clk 0:01:06.1]} 27. Rxe3 {[%clk 0:00:37.2]} 27... Qc8 {[%clk
0:01:03.1]} 28. Re1 {[%clk 0:00:15.8]} 28... h4 {[%clk 0:00:55.7]} 29. Ne4
{[%clk 0:00:15.6]} 29... Qc6 {[%clk 0:00:50.4]} 30. Qf3 {[%clk 0:00:10]} 30...
f5 {[%clk 0:00:39.8]} 31. Ng5 {[%clk 0:00:08.8]} 31... Qxf3 {[%clk 0:00:39.1]}
32. gxf3 {[%clk 0:00:08.8]} 32... Bf6 {[%clk 0:00:33.4]} 33. Ne6 {[%clk
0:00:08.2]} 33... Kf7 {[%clk 0:00:32.4]} 34. f4 {[%clk 0:00:05.3]} 34... Rb2
{[%clk 0:00:30.1]} 35. Re3 {[%clk 0:00:04.9]} 35... a5 {[%clk 0:00:25.3]} 36.
Kg2 {[%clk 0:00:04.9]} 36... Ke8 {[%clk 0:00:24.4]} 37. Kf3 {[%clk 0:00:02.6]}
37... Kd7 {[%clk 0:00:24.4]} 38. Nf8+ {[%clk 0:00:02.7]} 38... Kc6 {[%clk
0:00:23]} 39. Nxg6 {[%clk 0:00:03.6]} 39... e5 {[%clk 0:00:21.2]} 40. fxe5
{[%clk 0:00:02.2]} 40... dxe5 {[%clk 0:00:21.3]} 41. Nxe5+ {[%clk 0:00:02.7]}
41... Bxe5 {[%clk 0:00:21.5]} 42. Rxe5 {[%clk 0:00:03.1]} 42... Rxb3+ {[%clk
0:00:21.9]} 43. Ke2 {[%clk 0:00:02.4]} 43... Kb6 {[%clk 0:00:18.3]} 44. Rxf5
{[%clk 0:00:02.4]} 44... Rxh3 {[%clk 0:00:18.2]} 45. Rh5 {[%clk 0:00:02.2]}
45... a4 {[%clk 0:00:17]} 46. Kd2 {[%clk 0:00:02.8]} 46... a3 {[%clk 0:00:12.2]}
47. Kc2 {[%clk 0:00:02]} 47... Kc6 {[%clk 0:00:10]} 48. Kb1 {[%clk 0:00:02.3]}
48... Kd6 {[%clk 0:00:09.7]} 49. Ka2 {[%clk 0:00:02.7]} 49... Ke6 {[%clk
0:00:10.1]} 50. f4 {[%clk 0:00:02.4]} 50... Kf6 {[%clk 0:00:09.2]} 51. f5 {[%clk
0:00:02.9]} 51... Kg7 {[%clk 0:00:05.2]} 52. Rg5+ {[%clk 0:00:02.8]} 52... Kh6
{[%clk 0:00:04.6]} 53. Rg6+ {[%clk 0:00:03]} 53... Kh5 {[%clk 0:00:04.5]} 54.
Rg8 {[%clk 0:00:03.3]} 54... Rf3 {[%clk 0:00:04]} 55. f6 {[%clk 0:00:03.5]}
55... Rxf6 {[%clk 0:00:03]} 56. Kxa3 {[%clk 0:00:03.9]} 56... h3 {[%clk
0:00:03.3]} 57. Kb3 {[%clk 0:00:03.6]} 57... h2 {[%clk 0:00:03.5]} 58. Rh8+
{[%clk 0:00:03.6]} 58... Rh6 {[%clk 0:00:03.7]} 59. Rxh6+ {[%clk 0:00:03.2]}
59... Kxh6 {[%clk 0:00:04.1]} 60. Kc4 {[%clk 0:00:04.1]} 60... h1=Q {[%clk
0:00:04.2]} 61. Kd3 {[%clk 0:00:05]} 61... Qe1 {[%clk 0:00:04.2]} 62. Kc4 {[%clk
0:00:05.9]} 62... Kg5 {[%clk 0:00:04.9]} 63. Kb5 {[%clk 0:00:06.6]} 63... Kf5
{[%clk 0:00:05.8]} 64. Kc6 {[%clk 0:00:07.4]} 64... Ke6 {[%clk 0:00:06.7]} 65.
Kc7 {[%clk 0:00:06.7]} 65... Ke5 {[%clk 0:00:07.6]} 66. Kc6 {[%clk 0:00:06.7]}
66... Ke6 {[%clk 0:00:08.5]} 67. Kc7 {[%clk 0:00:06.1]} 67... Qc1+ {[%clk
0:00:09.4]} 68. Kb7 {[%clk 0:00:05.1]} 68... Qb2+ {[%clk 0:00:10.3]} 69. Kc8
{[%clk 0:00:05.3]} 69... Qc3+ {[%clk 0:00:10.5]} 70. Kb7 {[%clk 0:00:06.2]}
70... Qb4+ {[%clk 0:00:10.7]} 71. Kc6 {[%clk 0:00:07.1]} 71... Qc4+ {[%clk
0:00:10.8]} 72. Kb6 {[%clk 0:00:08]} 72... Qd5 {[%clk 0:00:10.6]} 73. Ka6 {[%clk
0:00:07.9]} 73... Qb3 {[%clk 0:00:10.1]} 74. Ka7 {[%clk 0:00:08.8]} 74... Kd6
{[%clk 0:00:10.3]} 75. Ka6 {[%clk 0:00:09.6]} 75... Kc6 {[%clk 0:00:10.3]} 76.
Ka5 {[%clk 0:00:10.3]} 76... Qb5# {[%clk 0:00:10.4]} 0-1

[Event "*** Titled Tuesday Blitz"]
[Site "Chess.com"]
[Date "2021.02.02"]
[Round "5"]
[White "Spalir"]
[Black "Oleksandr_Bortnyk"]
[Result "1/2-1/2"]
[WhiteElo "2634"]
[BlackElo "2900"]
[TimeControl "180+1"]
[EndTime "11:00:41 PST"]
[Termination "Game drawn by repetition"]

1. e4 {[%clk 0:03:00.5]} 1... Nf6 {[%clk 0:02:46.3]} 2. e5 {[%clk 0:02:57.2]}
2... Nd5 {[%clk 0:02:45.6]} 3. d4 {[%clk 0:02:56.7]} 3... d6 {[%clk 0:02:46]} 4.
Nf3 {[%clk 0:02:56]} 4... dxe5 {[%clk 0:02:46.5]} 5. Nxe5 {[%clk 0:02:56.1]}
5... c6 {[%clk 0:02:47]} 6. Be2 {[%clk 0:02:55.3]} 6... Bf5 {[%clk 0:02:47.2]}
7. O-O {[%clk 0:02:54.4]} 7... Nd7 {[%clk 0:02:47.7]} 8. Nf3 {[%clk 0:02:45.9]}
8... e6 {[%clk 0:02:45.8]} 9. c4 {[%clk 0:02:46.2]} 9... N5f6 {[%clk 0:02:45.6]}
10. Nc3 {[%clk 0:02:44.3]} 10... Bd6 {[%clk 0:02:45.9]} 11. Nh4 {[%clk
0:02:39.4]} 11... Bg6 {[%clk 0:02:45.4]} 12. Re1 {[%clk 0:02:34.9]} 12... Ne4
{[%clk 0:02:43.7]} 13. Nxg6 {[%clk 0:02:25.8]} 13... Bxh2+ {[%clk 0:02:43.4]}
14. Kf1 {[%clk 0:02:07.9]} 14... Nxc3 {[%clk 0:02:42.3]} 15. bxc3 {[%clk
0:02:07.8]} 15... hxg6 {[%clk 0:02:42.7]} 16. Bf3 {[%clk 0:01:58.3]} 16... Bd6
{[%clk 0:02:36.7]} 17. Rb1 {[%clk 0:01:57.9]} 17... Qc7 {[%clk 0:02:21.6]} 18.
c5 {[%clk 0:01:46.8]} 18... Be7 {[%clk 0:02:13.9]} 19. g3 {[%clk 0:01:46.9]}
19... g5 {[%clk 0:01:55.9]} 20. Kg2 {[%clk 0:01:43.4]} 20... b6 {[%clk 0:01:37]}
21. Qa4 {[%clk 0:01:33.7]} 21... Rc8 {[%clk 0:01:34.9]} 22. cxb6 {[%clk
0:01:29.5]} 22... axb6 {[%clk 0:01:35.8]} 23. c4 {[%clk 0:01:28.7]} 23... O-O
{[%clk 0:01:31]} 24. Qc2 {[%clk 0:01:24.3]} 24... Bf6 {[%clk 0:01:27.5]} 25. Be3
{[%clk 0:01:23.7]} 25... g6 {[%clk 0:01:27.1]} 26. Rh1 {[%clk 0:01:20.3]} 26...
Kg7 {[%clk 0:01:27.1]} 27. Qd2 {[%clk 0:01:17.5]} 27... Rh8 {[%clk 0:01:13.9]}
28. Bxg5 {[%clk 0:01:13.2]} 28... Bxg5 {[%clk 0:01:14.8]} 29. Qxg5 {[%clk
0:01:13.3]} 29... Qd6 {[%clk 0:01:15.2]} 30. Qe3 {[%clk 0:01:02.4]} 30... c5
{[%clk 0:01:11.8]} 31. dxc5 {[%clk 0:00:57.6]} 31... Qxc5 {[%clk 0:01:06.4]} 32.
Qc3+ {[%clk 0:00:54.1]} 32... e5 {[%clk 0:00:45.5]} 33. Rxh8 {[%clk 0:00:48.9]}
33... Rxh8 {[%clk 0:00:40.2]} 34. Qb4 {[%clk 0:00:49.4]} 34... Rc8 {[%clk
0:00:08.5]} 35. Qxc5 {[%clk 0:00:49.1]} 35... Rxc5 {[%clk 0:00:09.4]} 36. Bd5
{[%clk 0:00:49.6]} 36... f5 {[%clk 0:00:09]} 37. Be6 {[%clk 0:00:48.1]} 37...
Nf8 {[%clk 0:00:07.6]} 38. Bd5 {[%clk 0:00:48.3]} 38... Nd7 {[%clk 0:00:08.1]}
39. Be6 {[%clk 0:00:48.6]} 39... Nf8 {[%clk 0:00:02.8]} 40. Bd5 {[%clk
0:00:48.6]} 40... Ra5 {[%clk 0:00:03.1]} 41. Rxb6 {[%clk 0:00:47.1]} 41... Rxa2
{[%clk 0:00:03.4]} 42. Rb7+ {[%clk 0:00:35.4]} 42... Kh6 {[%clk 0:00:03.5]} 43.
Rf7 {[%clk 0:00:34]} 43... Nh7 {[%clk 0:00:03.7]} 44. c5 {[%clk 0:00:34]} 44...
Ra5 {[%clk 0:00:04]} 45. Rc7 {[%clk 0:00:28.1]} 45... Nf6 {[%clk 0:00:04.7]} 46.
Bf7 {[%clk 0:00:22.8]} 46... Ne4 {[%clk 0:00:04.9]} 47. Bd5 {[%clk 0:00:21]}
47... Rxc5 {[%clk 0:00:04.6]} 48. Rxc5 {[%clk 0:00:20.8]} 48... Nxc5 {[%clk
0:00:05.5]} 49. Kf3 {[%clk 0:00:19.4]} 49... Kg5 {[%clk 0:00:05.4]} 50. Bc6
{[%clk 0:00:19.6]} 50... Kf6 {[%clk 0:00:05.4]} 51. Ba8 {[%clk 0:00:20.1]} 51...
g5 {[%clk 0:00:05.9]} 52. Kg2 {[%clk 0:00:20.2]} 52... Ne6 {[%clk 0:00:05.5]}
53. Bd5 {[%clk 0:00:20.3]} 53... Nd4 {[%clk 0:00:06.1]} 54. Ba8 {[%clk
0:00:20.8]} 54... Ke7 {[%clk 0:00:06.4]} 55. Bb7 {[%clk 0:00:20.7]} 55... Kd6
{[%clk 0:00:06.9]} 56. Ba8 {[%clk 0:00:19.6]} 56... Kc5 {[%clk 0:00:07.4]} 57.
Kf1 {[%clk 0:00:18.5]} 57... Kb4 {[%clk 0:00:07.5]} 58. Ke1 {[%clk 0:00:19]}
58... Kc3 {[%clk 0:00:08]} 59. Bb7 {[%clk 0:00:19.2]} 59... e4 {[%clk
0:00:07.7]} 60. Bc8 {[%clk 0:00:19.2]} 60... Kc2 {[%clk 0:00:07.1]} 61. Bd7
{[%clk 0:00:18.3]} 61... Kd3 {[%clk 0:00:07.1]} 62. Bc8 {[%clk 0:00:18.3]} 62...
e3 {[%clk 0:00:07.4]} 63. Ba6+ {[%clk 0:00:18.6]} 63... Ke4 {[%clk 0:00:07.1]}
64. Bb7+ {[%clk 0:00:19.2]} 64... Kd3 {[%clk 0:00:07.4]} 65. Ba6+ {[%clk
0:00:18.1]} 65... Ke4 {[%clk 0:00:04.2]} 66. Bb7+ {[%clk 0:00:18.4]} 66... Ke5
{[%clk 0:00:04.9]} 67. fxe3 {[%clk 0:00:18.8]} 67... Nc2+ {[%clk 0:00:05.1]} 68.
Kd2 {[%clk 0:00:18.3]} 68... Nb4 {[%clk 0:00:06]} 69. Ke2 {[%clk 0:00:18.1]}
69... Nd5 {[%clk 0:00:06.1]} 70. Kf3 {[%clk 0:00:17.5]} 70... g4+ {[%clk
0:00:06.3]} 71. Ke2 {[%clk 0:00:17.4]} 71... Nf6 {[%clk 0:00:07.2]} 72. Kf2
{[%clk 0:00:16.2]} 72... Ne4+ {[%clk 0:00:07.6]} 73. Bxe4 {[%clk 0:00:15.6]}
73... fxe4 {[%clk 0:00:04.1]} 74. Ke2 {[%clk 0:00:16.5]} 74... Kd5 {[%clk
0:00:05]} 75. Kd2 {[%clk 0:00:15.6]} 75... Kc4 {[%clk 0:00:03.9]} 76. Kc2 {[%clk
0:00:15.7]} 76... Kb4 {[%clk 0:00:04.6]} 77. Kb2 {[%clk 0:00:16]} 77... Kc4
{[%clk 0:00:05.3]} 78. Kc2 {[%clk 0:00:16.2]} 78... Kb4 {[%clk 0:00:05.9]} 79.
Kb2 {[%clk 0:00:16.4]} 79... Kc4 {[%clk 0:00:06.6]} 80. Kc2 {[%clk 0:00:16.9]}
1/2-1/2

[Event "*** Titled Tuesday Blitz"]
[Site "Chess.com"]
[Date "2021.02.02"]
[Round "5"]
[White "ChelsieMonica"]
[Black "Artyom_ChessMate"]
[Result "0-1"]
[WhiteElo "2393"]
[BlackElo "2557"]
[TimeControl "180+1"]
[EndTime "11:00:44 PST"]
[Termination "Artyom_ChessMate won by resignation"]

1. c4 {[%clk 0:03:00]} 1... e6 {[%clk 0:02:57.5]} 2. d4 {[%clk 0:02:54.5]} 2...
d5 {[%clk 0:02:58.4]} 3. Nf3 {[%clk 0:02:55.4]} 3... Nf6 {[%clk 0:02:58.3]} 4.
cxd5 {[%clk 0:02:55.9]} 4... exd5 {[%clk 0:02:59.2]} 5. e3 {[%clk 0:02:56.8]}
5... c6 {[%clk 0:02:59.7]} 6. Be2 {[%clk 0:02:56.8]} 6... Bf5 {[%clk 0:02:59.5]}
7. O-O {[%clk 0:02:57.7]} 7... Bd6 {[%clk 0:02:59.7]} 8. Nc3 {[%clk 0:02:43.6]}
8... O-O {[%clk 0:02:59.3]} 9. h3 {[%clk 0:02:44.5]} 9... h6 {[%clk 0:02:58]}
10. Bd3 {[%clk 0:02:33.1]} 10... Bxd3 {[%clk 0:02:57.8]} 11. Qxd3 {[%clk
0:02:34]} 11... Re8 {[%clk 0:02:58.7]} 12. b3 {[%clk 0:02:29]} 12... Nbd7 {[%clk
0:02:57.8]} 13. a4 {[%clk 0:02:23.8]} 13... Ne4 {[%clk 0:02:57.2]} 14. Ba3
{[%clk 0:02:20.1]} 14... Bc7 {[%clk 0:02:54.6]} 15. Nd2 {[%clk 0:02:17.1]} 15...
Ndf6 {[%clk 0:02:44.8]} 16. Ncxe4 {[%clk 0:02:12.2]} 16... Nxe4 {[%clk
0:02:36.7]} 17. Nxe4 {[%clk 0:02:10.5]} 17... Rxe4 {[%clk 0:02:37.6]} 18. f3
{[%clk 0:02:09.4]} 18... Re6 {[%clk 0:02:36.4]} 19. f4 {[%clk 0:02:09]} 19...
Re4 {[%clk 0:02:32.9]} 20. Rf3 {[%clk 0:02:09]} 20... Qf6 {[%clk 0:02:31]} 21.
Raf1 {[%clk 0:02:03.3]} 21... Rae8 {[%clk 0:02:30.7]} 22. b4 {[%clk 0:01:56.6]}
22... Bb6 {[%clk 0:02:29.1]} 23. Bc1 {[%clk 0:01:54.5]} 23... a5 {[%clk
0:02:16.4]} 24. b5 {[%clk 0:01:49.3]} 24... Qd6 {[%clk 0:02:15.4]} 25. bxc6
{[%clk 0:01:43.3]} 25... Qxc6 {[%clk 0:02:15.4]} 26. Qb3 {[%clk 0:01:40.3]}
26... Bc7 {[%clk 0:02:02.1]} 27. Bd2 {[%clk 0:01:37.7]} 27... b6 {[%clk
0:01:46.1]} 28. Rc1 {[%clk 0:01:36.7]} 28... Qd6 {[%clk 0:01:45.7]} 29. Qc2
{[%clk 0:01:28.9]} 29... R8e7 {[%clk 0:01:45]} 30. Qc6 {[%clk 0:01:25.6]} 30...
Qd8 {[%clk 0:01:35.5]} 31. Rb1 {[%clk 0:01:11]} 31... R4e6 {[%clk 0:01:34.6]}
32. Qc2 {[%clk 0:01:04.4]} 32... Qd6 {[%clk 0:01:30.5]} 33. Rb5 {[%clk
0:01:04.3]} 33... g5 {[%clk 0:01:19.2]} 34. Qf5 {[%clk 0:01:01.3]} 34... Rf6
{[%clk 0:01:06.7]} 35. Qxd5 {[%clk 0:00:58.2]} 35... Qxd5 {[%clk 0:01:07.1]} 36.
Rxd5 {[%clk 0:00:58.7]} 36... gxf4 {[%clk 0:01:08]} 37. exf4 {[%clk 0:00:56.4]}
37... Re2 {[%clk 0:01:07.8]} 38. Be3 {[%clk 0:00:40.2]} 38... Ra2 {[%clk
0:01:03.2]} 39. Rd7 {[%clk 0:00:37.3]} 39... Bd6 {[%clk 0:01:00.8]} 40. f5
{[%clk 0:00:33.4]} 40... Rxa4 {[%clk 0:00:57.2]} 41. g4 {[%clk 0:00:28.7]} 41...
Ra1+ {[%clk 0:00:55.7]} 42. Kg2 {[%clk 0:00:27.8]} 42... Ra2+ {[%clk 0:00:56]}
43. Kf1 {[%clk 0:00:23.9]} 43... Bf8 {[%clk 0:00:51.2]} 44. d5 {[%clk 0:00:22]}
44... Ra3 {[%clk 0:00:44.2]} 45. Ke2 {[%clk 0:00:20.3]} 45... a4 {[%clk
0:00:41.6]} 46. Rd8 {[%clk 0:00:15.6]} 46... Rd6 {[%clk 0:00:32.5]} 47. Rxd6
{[%clk 0:00:11.4]} 47... Bxd6 {[%clk 0:00:33.4]} 48. Bxb6 {[%clk 0:00:11.2]}
48... Rxf3 {[%clk 0:00:28.7]} 49. Kxf3 {[%clk 0:00:12.1]} 49... a3 {[%clk
0:00:29.6]} 50. Bd4 {[%clk 0:00:12.3]} 50... a2 {[%clk 0:00:29.7]} 51. f6 {[%clk
0:00:09.8]} 51... Kh7 {[%clk 0:00:19.1]} 52. Ke4 {[%clk 0:00:10.2]} 52... Kg6
{[%clk 0:00:18.6]} 53. Kd3 {[%clk 0:00:09.2]} 53... Kg5 {[%clk 0:00:18.6]} 54.
Kc2 {[%clk 0:00:08.3]} 54... Kh4 {[%clk 0:00:18.7]} 55. Kb3 {[%clk 0:00:08.3]}
55... Kxh3 {[%clk 0:00:19.1]} 56. Kxa2 {[%clk 0:00:08.8]} 56... Kxg4 {[%clk
0:00:19.8]} 57. Kb3 {[%clk 0:00:08.8]} 57... Kf5 {[%clk 0:00:19.1]} 58. Kc4
{[%clk 0:00:08.7]} 58... Ke4 {[%clk 0:00:19.7]} 59. Bc5 {[%clk 0:00:07.9]} 59...
Be5 {[%clk 0:00:10.3]} 60. d6 {[%clk 0:00:04.2]} 60... Bxf6 {[%clk 0:00:10.1]}
61. d7 {[%clk 0:00:02.2]} 61... Bd8 {[%clk 0:00:10.3]} 62. Kb5 {[%clk
0:00:02.5]} 62... f5 {[%clk 0:00:09.7]} 63. Kc6 {[%clk 0:00:03.4]} 63... f4
{[%clk 0:00:09.4]} 64. Bb6 {[%clk 0:00:03.9]} 64... Be7 {[%clk 0:00:09.3]} 65.
Bc5 {[%clk 0:00:03]} 65... Bg5 {[%clk 0:00:09.5]} 66. Kd6 {[%clk 0:00:02.4]}
66... h5 {[%clk 0:00:09.3]} 67. Ke6 {[%clk 0:00:02.4]} 67... f3 {[%clk
0:00:09.7]} 68. Be7 {[%clk 0:00:02.3]} 68... Bxe7 {[%clk 0:00:05.9]} 69. Kxe7
{[%clk 0:00:03.2]} 69... f2 {[%clk 0:00:06.8]} 70. d8=Q {[%clk 0:00:03.7]} 70...
f1=Q {[%clk 0:00:07.7]} 71. Qa8+ {[%clk 0:00:03.5]} 71... Ke3 {[%clk 0:00:07.6]}
72. Qa7+ {[%clk 0:00:03.4]} 72... Ke2 {[%clk 0:00:07]} 73. Qa2+ {[%clk
0:00:02.9]} 73... Ke1 {[%clk 0:00:06.8]} 74. Qe6+ {[%clk 0:00:03.1]} 74... Qe2
{[%clk 0:00:05.5]} 75. Qxe2+ {[%clk 0:00:01.5]} 75... Kxe2 {[%clk 0:00:06.4]}
76. Kf6 {[%clk 0:00:02.2]} 76... h4 {[%clk 0:00:07.3]} 77. Kg5 {[%clk
0:00:03.1]} 77... h3 {[%clk 0:00:08.2]} 78. Kf4 {[%clk 0:00:03.4]} 78... h2
{[%clk 0:00:09.1]} 79. Kg3 {[%clk 0:00:04.3]} 79... h1=Q {[%clk 0:00:09.9]} 0-1

[Event "*** Titled Tuesday Blitz"]
[Site "Chess.com"]
[Date "2021.02.02"]
[Round "5"]
[White "FlySooHigh"]
[Black "ChessLover0108"]
[Result "0-1"]
[WhiteElo "2604"]
[BlackElo "2850"]
[TimeControl "180+1"]
[EndTime "11:00:53 PST"]
[Termination "ChessLover0108 won on time"]

1. e4 {[%clk 0:03:00.9]} 1... c5 {[%clk 0:02:57.4]} 2. Nf3 {[%clk 0:03:00.3]}
2... d6 {[%clk 0:02:57.7]} 3. Nc3 {[%clk 0:02:59.9]} 3... Nf6 {[%clk 0:02:58]}
4. e5 {[%clk 0:03:00]} 4... dxe5 {[%clk 0:02:58.5]} 5. Nxe5 {[%clk 0:03:00.9]}
5... e6 {[%clk 0:02:46.6]} 6. Be2 {[%clk 0:03:00.1]} 6... Bd6 {[%clk 0:02:44]}
7. d4 {[%clk 0:02:59.8]} 7... Nbd7 {[%clk 0:02:39.6]} 8. Bf4 {[%clk 0:02:55.8]}
8... cxd4 {[%clk 0:02:25.4]} 9. Qxd4 {[%clk 0:02:50.5]} 9... Bxe5 {[%clk
0:02:09.8]} 10. Bxe5 {[%clk 0:02:49.7]} 10... Nxe5 {[%clk 0:02:10.7]} 11. Qxe5
{[%clk 0:02:49.2]} 11... O-O {[%clk 0:02:11.6]} 12. O-O {[%clk 0:02:45.3]} 12...
Qb6 {[%clk 0:02:06.9]} 13. Na4 {[%clk 0:02:35.9]} 13... Qb4 {[%clk 0:02:03.6]}
14. b3 {[%clk 0:02:30.5]} 14... Bd7 {[%clk 0:02:01.3]} 15. Nc5 {[%clk
0:02:12.1]} 15... Bc6 {[%clk 0:01:57.1]} 16. c4 {[%clk 0:02:10.2]} 16... Rad8
{[%clk 0:01:52.4]} 17. Rfd1 {[%clk 0:01:56]} 17... h6 {[%clk 0:01:48.6]} 18. h3
{[%clk 0:01:46.6]} 18... Qa5 {[%clk 0:01:34.4]} 19. Qe3 {[%clk 0:01:27.8]} 19...
b6 {[%clk 0:01:27.3]} 20. Nd3 {[%clk 0:01:17.9]} 20... Ne4 {[%clk 0:01:11]} 21.
b4 {[%clk 0:01:07.7]} 21... Qf5 {[%clk 0:00:50.8]} 22. Bf3 {[%clk 0:01:00.9]}
22... Ba8 {[%clk 0:00:49.5]} 23. Nf4 {[%clk 0:00:56.1]} 23... Rc8 {[%clk
0:00:44.7]} 24. Rac1 {[%clk 0:00:53.8]} 24... Nf6 {[%clk 0:00:35.4]} 25. Bxa8
{[%clk 0:00:51.5]} 25... Rxa8 {[%clk 0:00:36.3]} 26. c5 {[%clk 0:00:46.3]} 26...
bxc5 {[%clk 0:00:36]} 27. Rxc5 {[%clk 0:00:44.7]} 27... Qe4 {[%clk 0:00:35.6]}
28. Qxe4 {[%clk 0:00:35]} 28... Nxe4 {[%clk 0:00:36.4]} 29. Rc7 {[%clk
0:00:35.7]} 29... Nf6 {[%clk 0:00:30]} 30. a4 {[%clk 0:00:32.2]} 30... a6 {[%clk
0:00:24.7]} 31. Rdc1 {[%clk 0:00:28.7]} 31... Rab8 {[%clk 0:00:21.3]} 32. R1c4
{[%clk 0:00:24.6]} 32... Rfd8 {[%clk 0:00:19.9]} 33. Ra7 {[%clk 0:00:21.6]}
33... Rd1+ {[%clk 0:00:19.9]} 34. Kh2 {[%clk 0:00:21.8]} 34... Rb1 {[%clk
0:00:20.8]} 35. Rcc7 {[%clk 0:00:21.3]} 35... R1xb4 {[%clk 0:00:16.7]} 36. Nd3
{[%clk 0:00:20.7]} 36... Rd4 {[%clk 0:00:16.2]} 37. Ne5 {[%clk 0:00:18.1]} 37...
Rxa4 {[%clk 0:00:07.6]} 38. Rxf7 {[%clk 0:00:16.9]} 38... Ne8 {[%clk 0:00:08.1]}
39. Rfe7 {[%clk 0:00:12.1]} 39... Rc8 {[%clk 0:00:02.9]} 40. Kg3 {[%clk
0:00:09]} 40... Ra3+ {[%clk 0:00:02.8]} 41. f3 {[%clk 0:00:09.1]} 41... a5
{[%clk 0:00:03.7]} 42. h4 {[%clk 0:00:09.2]} 42... Ra1 {[%clk 0:00:03.2]} 43. h5
{[%clk 0:00:09]} 43... a4 {[%clk 0:00:03.8]} 44. Ng6 {[%clk 0:00:08.4]} 44... a3
{[%clk 0:00:03]} 45. Rf7 {[%clk 0:00:08.6]} 45... Kh7 {[%clk 0:00:03.1]} 46. Rf8
{[%clk 0:00:06.3]} 46... Nd6 {[%clk 0:00:03.6]} 47. Rxc8 {[%clk 0:00:04.7]}
47... Nxc8 {[%clk 0:00:04.5]} 48. Rf7 {[%clk 0:00:03.2]} 48... Rh1 {[%clk
0:00:02.1]} 49. Rf8 {[%clk 0:00:01.9]} 49... Rxh5 {[%clk 0:00:02.4]} 50. Nf4
{[%clk 0:00:02.1]} 50... Rg5+ {[%clk 0:00:03]} 51. Kf2 {[%clk 0:00:02.5]} 51...
Nd6 {[%clk 0:00:03.6]} 52. Ra8 {[%clk 0:00:02.6]} 52... e5 {[%clk 0:00:03.4]}
53. Nd3 {[%clk 0:00:02.3]} 53... e4 {[%clk 0:00:03.6]} 54. fxe4 {[%clk
0:00:02.9]} 54... Nxe4+ {[%clk 0:00:04.5]} 55. Ke3 {[%clk 0:00:03.8]} 55... Nf6
{[%clk 0:00:04.3]} 56. Nf4 {[%clk 0:00:03.1]} 56... Rg3+ {[%clk 0:00:04.4]} 57.
Kf2 {[%clk 0:00:03]} 57... Rb3 {[%clk 0:00:05.1]} 58. Ne6 {[%clk 0:00:03.2]}
58... Ne4+ {[%clk 0:00:05.1]} 59. Ke2 {[%clk 0:00:02.8]} 59... Kg6 {[%clk
0:00:04.7]} 60. Ra7 {[%clk 0:00:03.2]} 60... a2 {[%clk 0:00:04.3]} 61. Nxg7
{[%clk 0:00:01.5]} 61... Nc3+ {[%clk 0:00:04.5]} 62. Kd3 {[%clk 0:00:01.2]}
62... Rb1 {[%clk 0:00:05.4]} 63. Kxc3 {[%clk 0:00:01.2]} 63... a1=Q+ {[%clk
0:00:06.3]} 64. Rxa1 {[%clk 0:00:01.9]} 64... Rxa1 {[%clk 0:00:07.1]} 65. Ne6
{[%clk 0:00:02.8]} 65... Rf1 {[%clk 0:00:07.2]} 66. Kd3 {[%clk 0:00:02.9]} 66...
Kf5 {[%clk 0:00:06.7]} 67. Nd4+ {[%clk 0:00:02.8]} 67... Kg4 {[%clk 0:00:07.1]}
68. Ke3 {[%clk 0:00:02.7]} 68... Kg3 {[%clk 0:00:05.7]} 69. Ne2+ {[%clk
0:00:01.5]} 69... Kxg2 {[%clk 0:00:06.1]} 70. Nf4+ {[%clk 0:00:02.4]} 70... Kg3
{[%clk 0:00:06.6]} 71. Ne2+ {[%clk 0:00:02]} 71... Kg4 {[%clk 0:00:06.1]} 72.
Nc3 {[%clk 0:00:02.1]} 72... h5 {[%clk 0:00:06.4]} 73. Ne4 {[%clk 0:00:02.4]}
73... Re1+ {[%clk 0:00:05.8]} 74. Kd3 {[%clk 0:00:02]} 74... Rxe4 {[%clk
0:00:06.7]} 75. Kxe4 {[%clk 0:00:02.2]} 75... Kg3 {[%clk 0:00:07.4]} 76. Ke3
{[%clk 0:00:03.1]} 76... h4 {[%clk 0:00:08.3]} 77. Ke2 {[%clk 0:00:04]} 77...
Kg2 {[%clk 0:00:08.9]} 0-1